bitfinex-derivatives/quotes_ETHF0:USTF0_20250209
["timestamp","ask_amount","ask_price","bid_price","bid_amount"]
[1739094731753,3.2078,2660.3,2660.0,42.80128503]
[1739094731959,0.5732,2660.2,2660.0,2.00128503]
[1739094734457,1.1511,2660.2,2660.0,2.00128503]
[1739094736454,1.1511,2660.2,2660.0,2.56088503]
[1739094736656,3.2078,2660.3,2660.0,2.56088503]
[1739094737055,3.2078,2660.3,2660.0,3.08018503]
[1739094737857,3.2078,2660.3,2660.1,40.8]
[1739094739262,0.586,2660.5,2660.1,40.8]
[1739094740561,3.2078,2660.4,2660.1,40.8]
[1739094742253,3.2078,2660.4,2660.0,2.56088503]
[1739094742867,3.2078,2660.4,2660.0,43.36088503]
[1739094745461,3.2078,2660.4,2660.3,2.00128503]
[1739094745664,0.586,2660.5,2660.3,2.00128503]
[1739094745970,0.586,2660.5,2660.4,0.5847]
[1739094746165,0.586,2660.5,2660.4,1.1465]
[1739094746967,0.577,2660.6,2660.4,1.1465]
[1739094747667,6.20744663,2660.7,2660.4,1.1465]
[1739094748374,6.20744663,2660.7,2660.5,40.8]
[1739094749872,0.00564663,2660.7,2660.5,40.8]
[1739094751471,0.00564663,2660.7,2660.6,2.00128503]
[1739094752068,0.00564663,2660.7,2660.6,2.52048503]
[1739094752875,3.2078,2661.0,2660.6,2.52048503]
[1739094753079,3.2078,2661.0,2660.9,2.00128503]
[1739094753474,1.7237,2661.2,2660.9,2.00128503]
[1739094753678,1.7237,2661.2,2661.0,0.572]
[1739094753679,1.1424,2661.2,2661.0,0.572]
[1739094753974,1.1424,2661.2,2661.0,1.1521]
[1739094754174,1.1424,2661.2,2661.1,40.8]
[1739094754772,1.7174,2661.2,2661.1,40.8]
[1739094754970,3.2078,2661.3,2661.0,0.572]
[1739094755168,3.2078,2661.3,2661.2,2.00128503]
[1739094758977,3.2078,2661.3,2660.9,2.00128503]
[1739094759174,0.5839,2661.2,2660.9,2.00128503]
[1739094763280,3.2078,2661.3,2660.9,2.00128503]
[1739094764181,4.39674663,2661.4,2660.9,2.00128503]
[1739094766080,0.569,2661.3,2660.9,2.00128503]
[1739094774081,0.569,2661.3,2660.9,5.20908503]
[1739094775787,0.569,2661.3,2660.9,2.00128503]
[1739094776090,0.569,2661.3,2660.9,5.20908503]
[1739094776589,0.569,2661.3,2660.9,2.00128503]
[1739094776890,0.569,2661.3,2660.9,5.20908503]
[1739094778386,7.4807804,2661.2,2660.9,2.00128503]
[1739094779290,3.2078,2661.2,2660.9,2.00128503]
[1739094783501,1.18894663,2661.4,2660.9,2.00128503]
[1739094783799,1.18894663,2661.4,2661.2,2.00128503]
[1739094793406,1.18894663,2661.4,2661.1,0.5693]
[1739094794411,1.18894663,2661.4,2660.9,2.00128503]
[1739094796511,3.2078,2661.3,2660.9,2.00128503]
[1739094797215,3.2078,2661.3,2661.0,1.1681]
[1739094797810,3.2078,2661.3,2661.2,2.00128503]
[1739094798215,1.18894663,2661.4,2661.2,2.00128503]
[1739094806719,1.18894663,2661.4,2661.3,0.89476526]
[1739094808028,0.00564663,2661.4,2661.3,0.89476526]
[1739094810621,0.00564663,2661.4,2661.3,1.99873668]
[1739094820939,3.7869,2661.9,2661.3,1.99873668]
[1739094821234,3.7869,2661.9,2661.6,1.99873668]
[1739094821444,3.7869,2661.9,2661.7,0.5901]
[1739094822334,3.7869,2661.9,2661.6,1.99873668]
[1739094829044,4.03413846,2661.8,2661.5,0.00563592]
[1739094829337,0.5474,2661.7,2661.5,0.00563592]
[1739094829839,0.5843,2661.6,2661.5,0.00563592]
[1739094831533,0.5474,2661.7,2661.5,0.00563592]
[1739094831734,0.5474,2661.7,2661.6,1.99873668]
[1739094832540,0.5474,2661.7,2661.6,42.79873668]
[1739094832740,0.5474,2661.7,2661.6,41.69440678]
[1739094836343,0.5474,2661.7,2661.6,42.58881356]
[1739094838842,0.5474,2661.7,2661.6,1.78881356]
[1739094839342,0.5474,2661.7,2661.6,42.58881356]
[1739094840044,0.5474,2661.7,2661.6,1.78881356]
[1739094840437,0.5474,2661.7,2661.6,0.89440678]
[1739094841235,0.5474,2661.7,2661.6,1.78881356]
[1739094850447,0.5474,2661.7,2661.6,0.89440678]
[1739094850644,0.5474,2661.7,2661.6,0.39440678]
[1739094858158,3.7552,2661.7,2661.6,0.39440678]
[1739094861258,3.7552,2661.7,2661.5,0.00563592]
[1739094861459,8.83594412,2661.7,2661.5,0.00563592]
[1739094861961,9.36179412,2661.7,2661.2,0.89440678]
[1739094862163,3.2078,2661.4,2661.2,0.89440678]
[1739094862352,1.7123,2661.3,2661.0,4.10220678]
[1739094863460,1.7123,2661.3,2661.2,0.89440678]
[1739094863758,1.7123,2661.3,2661.2,0.39440678]
[1739094864855,6.04413265,2661.3,2661.2,0.39440678]
[1739094865462,1.7123,2661.3,2661.2,0.39440678]
[1739094865758,3.2078,2661.4,2661.2,0.39440678]
[1739094865956,6.5559,2661.8,2661.2,0.39440678]
[1739094866151,6.5559,2661.8,2661.4,0.89440678]
[1739094866359,3.2078,2661.5,2661.4,0.89440678]
[1739094866761,7.32587231,2661.5,2661.4,0.89440678]
[1739094868765,7.32587231,2661.5,2661.2,0.89440678]
[1739094868968,1.7094,2661.4,2661.2,0.89440678]
[1739094869665,4.16969697,2661.3,2661.2,0.89440678]
[1739094871465,1.7094,2661.4,2661.2,0.89440678]
[1739094872468,1.89454829,2661.4,2661.2,0.89440678]
[1739094873067,5.10234829,2661.4,2661.2,0.89440678]
[1739094876064,4.51944829,2661.4,2661.2,0.89440678]
[1739094880271,4.51944829,2661.4,2661.1,0.6039]
[1739094880465,4.63685724,2661.3,2661.0,0.89440678]
[1739094882076,3.2078,2661.1,2660.9,0.56333592]
[1739094882271,0.5762,2661.0,2660.9,0.00563592]
[1739094882467,5.28513079,2661.0,2660.9,0.00563592]
[1739094884475,3.2078,2661.1,2660.9,0.00563592]
[1739094884676,2.7756,2661.2,2661.0,0.89440678]
[1739094884874,3.2078,2661.1,2661.0,1.47120678]
[1739094885070,3.2078,2661.1,2661.0,2.03830678]
[1739094885872,2.7756,2661.2,2661.0,2.03830678]
[1739094887273,2.7756,2661.2,2661.0,1.47120678]
[1739094887471,2.7756,2661.2,2660.9,0.9000427]
[1739094888171,3.2078,2661.1,2660.9,0.9000427]
[1739094889075,3.2078,2661.1,2661.0,0.6037]
[1739094891279,3.2078,2661.1,2660.9,0.9000427]
[1739094893375,3.2078,2661.1,2661.0,0.5825]
[1739094893983,2.7756,2661.2,2661.0,0.5825]
[1739094894185,2.7756,2661.2,2661.1,0.5938]
[1739094895290,2.7756,2661.2,2661.1,1.48820678]
[1739094896089,2.7756,2661.2,2661.1,0.5938]
[1739094896584,2.7756,2661.2,2660.9,0.9000427]
[1739094898889,2.7756,2661.2,2661.0,0.5984]
[1739094899486,1.1546,2661.2,2661.1,0.89440678]
[1739094901885,4.3624,2661.2,2661.1,0.89440678]
[1739094904887,4.3624,2661.2,2661.0,0.5984]
[1739094905090,4.3624,2661.2,2660.9,0.9000427]
[1739094911889,4.3624,2661.2,2661.0,0.5744]
[1739094912192,4.3624,2661.2,2661.1,0.5532]
[1739094912490,4.3624,2661.2,2661.1,1.44760678]
[1739094912790,4.3624,2661.2,2660.9,0.00563592]
[1739094912994,8.94443562,2661.2,2660.9,0.00563592]
[1739094913193,8.94443562,2661.2,2660.7,0.89440678]
[1739094913496,8.94443562,2661.2,2660.4,2.04770678]
[1739094913687,8.41848562,2661.2,2660.4,2.04770678]
[1739094913890,9.3128924,2661.2,2660.4,1.44460678]
[1739094914196,0.52597,2661.1,2660.4,1.44460678]
[1739094914389,1.62,2661.0,2660.5,0.00563592]
[1739094914589,0.5664,2660.9,2660.5,0.00563592]
[1739094914793,0.5648,2660.8,2660.5,0.00563592]
[1739094915098,4.72530809,2660.8,2660.5,0.00563592]
[1739094918097,0.19053723,2660.7,2660.5,0.00563592]
[1739094918795,0.6,2660.6,2660.5,0.00563592]
[1739094924302,0.6,2660.6,2660.5,0.00563592]
[1739094932210,0.6,2660.6,2660.4,0.89440678]
[1739094932398,0.5561,2660.5,2660.4,0.89440678]
[1739094935507,0.5561,2660.5,2660.2,0.9000427]
[1739094935706,3.7627,2660.4,2660.2,0.9000427]
[1739094936102,0.5743,2660.3,2660.2,0.9000427]
[1739094941519,0.5743,2660.3,2660.0,0.89440678]
[1739094942016,3.2078,2660.1,2659.6,4.10220678]
[1739094942218,2.03220678,2660.0,2659.6,4.10220678]
[1739094942514,6.23745481,2660.0,2659.7,40.8]
[1739094942708,3.2078,2659.8,2659.6,0.89440678]
[1739094944521,3.2078,2659.8,2659.5,40.8]
[1739094944815,3.968396,2659.7,2659.2,0.89440678]
[1739094945118,1.1311,2659.6,2659.3,40.8]
[1739094945319,1.1311,2659.6,2659.4,0.89440678]
[1739094945521,4.50750824,2659.5,2659.4,0.89440678]
[1739094945907,4.50750824,2659.5,2659.4,1.49860678]
[1739094946311,0.5841,2659.5,2659.4,0.89440678]
[1739094946507,0.5841,2659.5,2659.4,1.50010678]
[1739094946716,0.5841,2659.5,2659.4,2.09890678]
[1739094948717,0.5686,2659.6,2659.4,2.09890678]
[1739094949110,3.7961,2659.8,2659.4,2.61820678]
[1739094949416,3.2078,2659.8,2659.7,0.89440678]
[1739094950724,3.2078,2659.8,2659.4,3.72553973]
[1739094958738,0.5487,2659.7,2659.4,3.72553973]
[1739094959029,1.1119,2659.7,2659.4,3.72553973]
[1739094960531,1.1119,2659.7,2659.4,0.6057]
[1739094962534,1.1119,2659.7,2659.4,2.60743973]
[1739094963138,0.5632,2659.7,2659.4,2.60743973]
[1739094966736,0.5632,2659.7,2659.5,0.5646]
[1739094967240,0.5835,2659.6,2659.4,2.60743973]
[1739094967538,0.5835,2659.6,2659.4,2.00173973]
[1739094967735,0.5835,2659.6,2659.3,0.6046]
[1739094967936,0.5807,2659.5,2659.3,0.6046]
[1739094968835,0.5807,2659.5,2659.2,44.0078]
[1739094972736,0.5807,2659.5,2659.3,0.89610644]
[1739094978847,0.5807,2659.5,2659.4,0.6024]
[1739094984555,0.5807,2659.5,2659.3,0.89610644]
[1739094987463,0.5807,2659.5,2659.2,40.8]
[1739094987762,3.2078,2659.3,2658.9,0.89610644]
[1739094987956,0.6027,2659.2,2658.9,1.46060644]
[1739094988156,1.2016,2659.2,2659.0,40.8]
[1739094988560,1.2016,2659.2,2658.9,1.46060644]
[1739094989463,4.93211644,2659.1,2658.8,3.2078]
[1739094989662,4.93211644,2659.1,2658.8,44.0078]
[1739094990758,5.82822288,2659.1,2658.8,3.2078]
[1739094991358,4.10390644,2658.9,2658.6,0.5566]
[1739094991664,1.203,2658.8,2658.5,0.89610644]
[1739094994567,0.2,2658.7,2658.5,0.89610644]
[1739094995358,0.8048,2658.7,2658.5,0.89610644]
[1739094995561,0.2,2658.6,2658.5,0.89610644]
[1739095003672,0.2,2658.6,2658.3,0.5566]
[1739095003977,4.67810644,2658.5,2658.1,0.89610644]
[1739095004176,0.5566,2658.4,2658.1,0.89610644]
[1739095004570,0.2,2658.3,2658.1,0.89610644]
[1739095005068,0.5742,2658.2,2658.1,0.89610644]
[1739095005777,0.7742,2658.2,2658.1,0.89610644]
[1739095006770,3.982,2658.2,2658.1,0.89610644]
[1739095007072,3.982,2658.2,2658.0,0.6006]
[1739095007273,3.982,2658.2,2658.0,1.49670644]
[1739095007674,0.2,2658.1,2658.0,1.49670644]
[1739095009087,0.2,2658.1,2658.0,0.89610644]
[1739095009978,0.2,2658.1,2657.8,1.48690644]
[1739095010177,0.5753,2658.0,2657.8,1.48690644]
[1739095010578,0.5596,2657.9,2657.8,1.48690644]
[1739095010781,0.7596,2657.9,2657.8,1.48690644]
[1739095012486,0.7596,2657.9,2657.8,0.89610644]
[1739095014886,0.2,2657.9,2657.8,0.89610644]
[1739095016684,0.2,2657.9,2657.8,1.44600644]
[1739095022192,0.2,2657.9,2657.8,1.96600644]
[1739095024287,3.2078,2658.4,2657.8,11.17380644]
[1739095024494,3.2078,2658.4,2658.2,0.89610644]
[1739095024798,3.2078,2658.4,2658.3,1.1145]
[1739095025990,3.2078,2658.4,2658.3,1.6345]
[1739095026194,3.7847,2658.8,2658.3,1.6345]
[1739095026397,3.7847,2658.8,2658.5,0.89610644]
[1739095032298,3.7847,2658.8,2658.3,2.01060644]
[1739095032701,3.2078,2658.5,2658.3,0.89610644]
[1739095032890,1.1607,2658.4,2658.3,0.89610644]
[1739095033095,1.7187,2658.4,2658.3,0.89610644]
[1739095036000,0.5567,2658.4,2658.3,0.89610644]
[1739095036199,3.2078,2658.6,2658.3,0.89610644]
[1739095036396,3.2078,2658.6,2658.5,0.89610644]
[1739095036798,3.2078,2658.6,2658.5,41.69610644]
[1739095037299,3.2078,2658.6,2658.5,0.89610644]
[1739095039304,1.165,2658.7,2658.5,0.89610644]
[1739095042202,3.2078,2659.0,2658.5,0.89610644]
[1739095042513,4.4079,2659.0,2658.9,0.89610644]
[1739095043009,1.2001,2659.0,2658.9,0.89610644]
[1739095046403,4.4079,2659.0,2658.7,0.89610644]
[1739095049615,4.15151185,2658.9,2658.5,0.89610644]
[1739095051914,3.2078,2658.8,2658.5,0.89610644]
[1739095052116,0.6028,2658.7,2658.5,0.89610644]
[1739095052410,0.5784,2658.7,2658.5,0.89610644]
[1739095052811,0.5784,2658.7,2658.6,0.5704]
[1739095053020,3.2078,2658.8,2658.6,0.5704]
[1739095053212,0.5784,2659.0,2658.7,0.89610644]
[1739095053509,0.5784,2659.0,2658.9,0.89610644]
[1739095053714,0.5782,2659.2,2658.9,0.89610644]
[1739095053916,1.1566,2659.2,2659.1,0.89610644]
[1739095054112,1.1566,2659.2,2658.9,0.89610644]
[1739095054319,4.14797422,2659.1,2658.9,0.89610644]
[1739095054619,1.1566,2659.2,2658.6,2.00290832]
[1739095054818,1.1566,2659.2,2658.7,0.5704]
[1739095055018,4.01224073,2659.0,2658.7,0.5704]
[1739095055222,4.01224073,2659.1,2658.7,0.5704]
[1739095055527,1.1566,2659.2,2658.7,0.5704]
[1739095057419,4.18144429,2659.1,2658.7,0.5704]
[1739095059116,4.18144429,2659.1,2658.7,1.1748]
[1739095060327,1.1566,2659.2,2658.7,1.1748]
[1739095067028,1.1566,2659.2,2658.7,0.5704]
[1739095067722,4.13908335,2659.1,2658.6,2.00290832]
[1739095070128,1.1566,2659.2,2658.6,2.00290832]
[1739095074838,1.1566,2659.2,2658.9,2.00290832]
[1739095075025,1.1566,2659.2,2659.0,1.1497]
[1739095076134,1.1566,2659.2,2659.0,0.5915]
[1739095080947,1.1566,2659.2,2659.0,1.164]
[1739095084949,1.1566,2659.2,2659.0,0.5915]
[1739095085145,1.1566,2659.2,2658.6,2.61030832]
[1739095085340,4.29660653,2659.1,2658.6,2.00290832]
[1739095086243,3.2078,2659.0,2658.6,2.00290832]
[1739095086439,0.55,2658.9,2658.6,2.00290832]
[1739095086642,0.5799,2658.8,2658.7,0.89648865]
[1739095088647,0.5799,2658.8,2658.4,3.19653569]
[1739095088950,0.5799,2658.8,2658.4,2.58913569]
[1739095105059,3.7877,2658.8,2658.4,2.58913569]
[1739095107369,3.7877,2658.8,2658.3,40.8]
[1739095107560,3.2078,2658.5,2658.1,2.56943569]
[1739095107866,1.7478,2658.4,2658.1,2.56943569]
[1739095108671,1.7478,2658.4,2658.1,1.46320858]
[1739095111967,1.7478,2658.4,2658.3,0.89690858]
[1739095122769,0.6073,2658.4,2658.3,0.89690858]
[1739095123073,3.2078,2658.6,2658.3,0.89690858]
[1739095123272,3.2078,2658.6,2658.5,0.89690858]
[1739095123473,3.2078,2658.6,2658.5,41.69690858]
[1739095123878,3.2078,2658.6,2658.5,42.28430858]
[1739095124874,4.3529,2659.1,2658.5,42.28430858]
[1739095125174,4.3529,2659.1,2658.8,0.89690858]
[1739095125376,4.3529,2659.1,2658.9,1.1852]
[1739095127772,4.3529,2659.1,2658.9,0.5874]
[1739095133379,4.3529,2659.1,2659.0,0.5835]
[1739095135882,3.7667,2659.1,2659.0,1.48040858]
[1739095136181,0.5995,2659.3,2659.0,1.48040858]
[1739095136377,0.5995,2659.3,2659.2,0.89690858]
[1739095136569,3.21343592,2659.4,2659.2,0.89690858]
[1739095136774,3.81293592,2659.4,2659.2,0.89690858]
[1739095144883,3.21343592,2659.4,2659.3,0.5547]
[1739095146786,3.21343592,2659.4,2659.3,1.1404]
[1739095146985,3.77473592,2659.4,2659.3,1.1404]
[1739095149098,0.56693592,2659.4,2659.3,1.1404]
[1739095154298,3.77473592,2659.4,2659.2,0.89690858]
[1739095154499,0.5932,2659.3,2659.0,0.89690858]
[1739095156704,0.5932,2659.3,2658.8,3.81390858]
[1739095156705,3.2078,2659.1,2658.8,3.81390858]
[1739095156902,1.1072,2659.0,2658.8,3.81390858]
[1739095159909,1.1072,2659.0,2658.8,0.89690858]
[1739095160205,0.5636,2658.9,2658.8,0.89690858]
[1739095161799,0.5636,2658.9,2658.6,0.89690858]
[1739095164303,0.5636,2658.9,2658.8,0.89690858]
[1739095164510,1.1072,2659.0,2658.8,0.89690858]
[1739095164705,1.1072,2659.0,2658.9,0.5943]
[1739095165105,1.1072,2659.0,2658.9,1.1904]
[1739095166108,0.5505,2659.0,2658.9,1.1904]
[1739095168608,3.2078,2659.1,2658.9,1.1904]
[1739095168910,3.2078,2659.1,2659.0,0.89690858]
[1739095170012,3.2078,2659.1,2658.9,0.5943]
[1739095170207,0.5951,2659.2,2658.8,0.89690858]
[1739095174108,0.5951,2659.2,2659.0,0.89690858]
[1739095174604,0.5951,2659.2,2659.0,1.45210858]
[1739095176014,0.6056,2659.3,2659.0,1.45210858]
[1739095176219,0.60233592,2659.4,2659.2,0.89690858]
[1739095176623,0.60233592,2659.4,2659.3,0.6011]
[1739095176814,0.00563592,2659.4,2659.3,0.6011]
[1739095179815,3.21343592,2659.4,2659.2,0.89690858]
[1739095180409,0.00563592,2659.4,2659.2,0.89690858]
[1739095190629,0.00563592,2659.4,2659.2,1.79381716]
[1739095191128,0.00563592,2659.4,2659.3,0.5184]
[1739095193333,0.00563592,2659.4,2659.2,0.89690858]
[1739095198838,0.00563592,2659.4,2659.2,1.0867877]
[1739095204139,0.00563592,2659.4,2659.2,1.98369628]
[1739095204448,0.52636,2659.1,2659.0,0.5552]
[1739095204641,3.2078,2659.3,2658.5,0.18590967]
[1739095204642,0.89690858,2659.2,2658.6,0.5739]
[1739095204938,0.89690858,2658.8,2658.0,0.89690858]
[1739095205139,3.2078,2658.1,2657.8,9.94612921]
[1739095205341,3.2078,2658.1,2658.0,0.89690858]
[1739095205539,3.2078,2658.4,2658.0,0.89690858]
[1739095205744,4.10470858,2658.4,2657.8,9.75702189]
[1739095205935,4.14749682,2658.3,2658.0,0.89690858]
[1739095206137,3.2078,2658.4,2658.2,0.89690858]
[1739095206339,5.4597,2658.7,2658.2,0.89690858]
[1739095206539,5.4597,2658.7,2658.5,0.89690858]
[1739095206746,5.4597,2658.7,2658.2,2.0034764]
[1739095207046,2.2519,2658.7,2658.2,2.0034764]
[1739095207241,2.2519,2658.7,2658.3,0.5648]
[1739095207444,0.6069,2658.7,2658.3,0.5648]
[1739095207743,0.6069,2658.7,2658.5,2.0034764]
[1739095207944,3.2078,2659.0,2658.5,2.0034764]
[1739095208141,0.5702,2659.3,2658.8,2.0034764]
[1739095208346,0.5702,2659.3,2658.9,0.5516]
[1739095209643,4.20830091,2659.2,2658.8,2.0034764]
[1739095209848,3.778,2659.3,2658.9,0.5516]
[1739095210044,3.778,2659.3,2659.1,2.0034764]
[1739095210340,3.778,2659.3,2658.9,0.5516]
[1739095210540,4.24813349,2659.2,2658.5,2.0034764]
[1739095210746,4.24813349,2659.2,2658.5,2.5550764]
[1739095210946,4.24813349,2659.2,2658.6,40.8]
[1739095211547,3.778,2659.3,2658.6,40.8]
[1739095211849,3.778,2659.3,2658.8,2.0034764]
[1739095212443,3.778,2659.3,2658.9,0.5693]
[1739095212941,0.5702,2659.3,2659.1,2.0034764]
[1739095213150,0.5702,2659.3,2658.9,4.0786]
[1739095215646,0.5702,2659.3,2659.1,2.0034764]
[1739095216545,0.00563592,2659.4,2659.1,2.0034764]
[1739095216750,0.00563592,2659.4,2659.1,2.5212764]
[1739095217151,0.00563592,2659.4,2659.3,3.2078]
[1739095221147,0.00563592,2659.4,2659.3,3.762]
[1739095221656,0.5966,2659.8,2659.3,3.762]
[1739095221953,0.5966,2659.8,2659.6,2.0034764]
[1739095222252,0.5966,2659.8,2659.7,0.5542]
[1739095224951,0.5966,2659.8,2659.5,0.00563592]
[1739095225158,0.6019,2659.7,2659.5,0.00563592]
[1739095227851,0.5966,2659.8,2659.6,2.0034764]
[1739095228654,0.5676,2659.7,2659.5,0.00563592]
[1739095229351,0.5966,2659.8,2659.5,0.00563592]
[1739095230157,0.5966,2659.8,2659.5,0.60393592]
[1739095231156,0.5966,2659.8,2659.5,0.00563592]
[1739095231352,0.5935,2659.7,2659.5,0.00563592]
[1739095231952,0.59,2659.6,2659.5,0.00563592]
[1739095233652,0.59,2659.6,2659.3,5.8159764]
[1739095233653,0.59,2659.6,2659.3,3.2078]
[1739095235458,0.59,2659.6,2659.3,5.2112764]
[1739095237358,0.59,2659.6,2659.3,2.0034764]
[1739095240260,0.59,2659.6,2659.0,3.7837]
[1739095240261,0.59,2659.6,2659.0,5.7871764]
[1739095240463,3.91026478,2659.5,2659.0,5.7871764]
[1739095240765,0.5718,2659.4,2659.0,5.7871764]
[1739095240964,0.5821,2659.3,2659.0,5.7871764]
[1739095241361,0.5817,2659.2,2659.0,5.7871764]
[1739095241765,0.5817,2659.2,2659.0,5.2112764]
[1739095242066,0.5817,2659.2,2659.0,3.2078]
[1739095244566,0.5817,2659.2,2659.0,5.2112764]
[1739095245371,0.5718,2659.4,2659.0,5.2112764]
[1739095245561,0.5821,2659.3,2659.0,5.2112764]
[1739095245762,0.5821,2659.3,2659.1,0.5963]
[1739095245963,0.5718,2659.4,2659.1,1.1573]
[1739095246270,0.5718,2659.4,2659.3,2.0034764]
[1739095246663,0.5821,2659.5,2659.3,2.0034764]
[1739095246962,0.5821,2659.5,2659.3,5.2112764]
[1739095247166,1.7839,2659.9,2659.3,5.2112764]
[1739095247470,1.7839,2659.9,2659.6,2.0034764]
[1739095247671,1.7839,2659.9,2659.7,0.5853]
[1739095250575,1.1863,2659.9,2659.7,0.5853]
[1739095253272,0.00563592,2660.0,2659.7,0.5853]
[1739095255074,0.00563592,2660.0,2659.9,2.0034764]
[1739095255477,0.00563592,2660.0,2659.9,42.8034764]
[1739095257571,0.00563592,2660.0,2659.9,2.0034764]
[1739095257878,0.00563592,2660.0,2659.7,0.5853]
[1739095261993,0.00563592,2660.0,2659.6,42.8034764]
[1739095262289,0.00563592,2660.0,2659.3,3.1493764]
[1739095262290,4.16985717,2659.9,2659.3,3.1493764]
[1739095262582,0.5686,2659.8,2659.3,43.9493764]
[1739095262979,0.6044,2659.7,2659.3,43.9493764]
[1739095263185,0.5735,2659.6,2659.3,43.3821764]
[1739095263386,4.79502182,2659.6,2659.0,5.7659764]
[1739095263577,4.79502182,2659.6,2659.3,2.0034764]
[1739095263779,0.6044,2659.7,2659.4,0.5547]
[1739095263981,0.00563592,2660.0,2659.6,2.0034764]
[1739095264175,0.00563592,2660.0,2659.6,5.2112764]
[1739095264681,0.00563592,2660.0,2659.6,2.0034764]
[1739095265877,0.00563592,2660.0,2659.5,0.5882]
[1739095266686,0.00563592,2660.0,2659.6,2.0034764]
[1739095267574,0.00563592,2660.0,2659.5,0.5882]
[1739095269191,0.00563592,2660.0,2659.6,2.0034764]
[1739095269483,0.00563592,2660.0,2659.6,2.5202764]
[1739095271491,0.00563592,2660.0,2659.6,2.0034764]
[1739095273288,3.73962592,2660.0,2659.5,0.5882]
[1739095273494,1.753,2659.9,2659.5,0.5882]
[1739095276193,1.753,2659.9,2659.3,42.8034764]
[1739095276394,1.753,2659.9,2659.3,40.8]
[1739095277397,3.2078,2659.7,2659.3,40.8]
[1739095278198,3.2078,2659.7,2659.1,1.1629]
[1739095278399,3.97301037,2659.6,2659.1,1.1629]
[1739095278694,1.1309,2659.5,2659.1,41.9629]
[1739095278895,1.6911,2659.5,2659.1,41.9629]
[1739095280404,1.6911,2659.5,2659.1,41.3939]
[1739095280801,1.6911,2659.5,2659.1,40.8]
[1739095281103,3.94905761,2659.4,2659.1,40.8]
[1739095281407,3.94905761,2659.4,2659.0,3.2078]
[1739095282397,3.94905761,2659.4,2659.0,5.2112764]
[1739095282707,0.5693,2659.5,2659.1,0.5974]
[1739095282907,0.5693,2659.5,2659.2,0.5801]
[1739095283098,3.7898,2659.7,2659.3,2.0034764]
[1739095283501,0.582,2659.7,2659.4,0.5166]
[1739095283905,0.582,2659.7,2659.5,0.5974]
[1739095284099,0.582,2659.7,2659.6,0.5709]
[1739095284410,0.5544,2659.9,2659.6,0.5709]
[1739095284608,0.5544,2659.9,2659.6,2.5743764]
[1739095284803,3.21343592,2660.0,2659.6,2.5743764]
[1739095285002,0.00563592,2660.0,2659.6,2.5743764]
[1739095285605,0.00563592,2660.0,2659.6,0.5709]
[1739095285908,0.59873592,2660.0,2659.6,0.5709]
[1739095286111,0.5987,2659.9,2659.6,0.5709]
[1739095286701,0.5987,2659.9,2659.3,2.0034764]
[1739095286902,0.5987,2659.9,2659.4,1.1357]
[1739095287907,1.14833592,2660.0,2659.6,2.0034764]
[1739095288111,0.59873592,2660.0,2659.7,0.5169]
[1739095288313,0.59873592,2660.0,2659.8,0.5715]
[1739095288506,0.59873592,2660.0,2659.8,1.1382]
[1739095289306,0.00563592,2660.0,2659.8,1.1382]
[1739095293711,0.00563592,2660.0,2659.9,2.0034764]
[1739095296022,0.00563592,2660.0,2659.8,1.1382]
[1739095296218,0.00563592,2660.0,2659.8,0.5715]
[1739095296219,1.20293592,2660.0,2659.8,0.5715]
[1739095296417,0.5785,2659.9,2659.8,0.5715]
[1739095302121,0.60043592,2660.0,2659.8,0.5715]
[1739095302719,0.00563592,2660.0,2659.9,2.0034764]
[1739095303321,5.14302,2660.8,2659.9,2.0034764]
[1739095303322,3.2078,2660.7,2659.9,11.4532764]
[1739095303521,3.2078,2660.7,2660.3,2.0034764]
[1739095303824,1.1662,2660.8,2660.4,41.9757]
[1739095306327,0.00563592,2660.9,2660.6,2.0034764]
[1739095307030,3.2078,2660.8,2660.4,41.3817]
[1739095307223,3.2078,2660.8,2660.3,2.0034764]
[1739095307224,1.7876,2660.7,2660.3,2.0034764]
[1739095309126,1.7876,2660.7,2660.4,0.5639]
[1739095309322,0.00563592,2660.9,2660.6,2.0034764]
[1739095310131,0.00563592,2660.9,2660.7,3.2078]
[1739095310524,0.00563592,2660.9,2660.8,0.5639]
[1739095313229,0.00563592,2660.9,2660.6,5.2112764]
[1739095313538,0.00563592,2660.9,2660.6,2.0034764]
[1739095314941,3.2078,2660.8,2660.3,2.0034764]
[1739095315124,7.2446535,2660.8,2660.3,2.0034764]
[1739095315834,3.2078,2660.5,2660.3,2.0034764]
[1739095316025,1.6806,2660.4,2660.3,2.0034764]
[1739095318233,1.6806,2660.4,2660.1,0.605]
[1739095318429,1.6806,2660.4,2659.9,2.917]
[1739095318430,6.0290739,2660.4,2659.9,2.917]
[1739095318631,6.0290739,2660.4,2659.8,40.8]
[1739095320130,5.7374464,2660.1,2659.7,0.00563592]
[1739095320331,3.2078,2659.8,2659.7,0.00563592]
[1739095320931,3.2078,2659.8,2659.2,41.3638]
[1739095321227,3.2078,2659.4,2658.8,5.2112764]
[1739095321433,3.2078,2659.4,2658.8,5.7750764]
[1739095321836,3.2078,2659.4,2658.9,40.8]
[1739095322027,3.21343592,2659.4,2658.9,40.8]
[1739095322223,2.0034764,2659.1,2658.8,3.2078]
[1739095322434,2.0034764,2659.1,2657.5,12.40517818]
[1739095322435,3.7342,2658.9,2658.0,0.5638]
[1739095322631,3.2078,2658.4,2658.2,2.0034764]
[1739095322835,3.2078,2658.7,2658.2,2.0034764]
[1739095323228,4.19928067,2658.6,2658.2,2.0034764]
[1739095323430,3.2078,2658.7,2658.5,2.0034764]
[1739095324234,3.2078,2658.7,2658.1,40.8]
[1739095324535,3.2078,2658.4,2658.1,42.8034764]
[1739095324730,3.2078,2658.4,2657.8,2.5728764]
[1739095324938,3.2078,2658.1,2657.6,0.5841]
[1739095325437,3.2078,2658.1,2657.7,40.8]
[1739095325640,4.31394494,2658.0,2657.7,40.8]
[1739095326232,3.2078,2657.8,2657.7,40.8]
[1739095326532,3.2078,2657.8,2657.3,0.6031]
[1739095326533,3.2078,2657.8,2657.2,2.0034764]
[1739095326740,3.2078,2657.5,2657.2,2.0034764]